bitfinex/quotes_SOLUSD_20251106
["timestamp","ask_amount","ask_price","bid_price","bid_amount"]
[1762410111310,104.7,159.85,159.82,14.91216016]
[1762410112428,104.7,159.85,159.83,3.3873488]
[1762410113335,104.7,159.85,159.82,6.97693832]
[1762410113525,7.94,159.84,159.8,3.3873488]
[1762410113721,7.28,159.84,159.8,3.3873488]
[1762410113926,0.1,159.88,159.83,6.7746976]
[1762410114121,0.1,159.88,159.87,3.3873488]
[1762410115420,0.1,159.88,159.87,9.64243105]
[1762410117123,0.1,159.88,159.87,10.32243105]
[1762410117429,0.1,159.88,159.87,9.64243105]
[1762410118622,0.1,159.88,159.86,6.25547353]
[1762410118837,0.1,159.88,159.87,3.3873488]
[1762410119712,0.1,159.88,159.87,9.64243105]
[1762410120937,0.1,159.91,159.87,10.32243105]
[1762410121119,0.1,159.93,159.9,6.7746976]
[1762410121312,0.1,159.93,159.92,6.7746976]
[1762410121511,0.1,159.95,159.94,20.592]
[1762410121748,0.1,160.04,159.95,31.67066575]
[1762410121911,0.1,160.04,160.0,6.7746976]
[1762410121912,7.4,160.04,160.0,6.7746976]
[1762410122112,0.76,160.01,160.0,3.3873488]
[1762410123221,0.76,160.01,159.96,0.68]
[1762410123426,0.76,160.01,160.0,3.3873488]
[1762410124531,0.1,160.01,160.0,3.3873488]
[1762410126641,0.76,160.01,159.99,3.3873488]
[1762410127048,0.1,160.01,160.0,3.3873488]
[1762410128442,0.1,160.01,160.0,13.7046976]
[1762410129020,0.1,160.01,160.0,9.6373488]
[1762410129224,0.1,160.01,160.0,3.3873488]
[1762410129723,0.76,160.01,159.98,6.25060934]
[1762410129937,0.76,160.01,159.98,3.3873488]
[1762410130723,0.76,160.01,159.98,9.63810318]
[1762410130920,7.3,160.0,159.96,9.63854191]
[1762410131452,7.3,160.0,159.99,3.3873488]
[1762410131948,0.1,160.01,159.99,3.3873488]
[1762410132148,0.1,160.01,159.96,21.88010033]
[1762410132149,0.1,160.01,160.0,3.3873488]
[1762410132329,0.1,160.01,160.0,9.6373488]
[1762410132927,0.1,160.01,159.98,6.25078134]
[1762410133235,0.76,160.01,159.99,3.3873488]
[1762410133759,0.76,160.01,159.97,3.3873488]
[1762410133955,7.00969319,160.01,159.97,3.3873488]
[1762410134149,7.3,160.0,159.96,3.3873488]
[1762410134456,7.3,160.0,159.92,4.0673488]
[1762410134457,7.91717197,159.97,159.89,0.68]
[1762410134625,7.96,159.96,159.91,7.91717197]
[1762410134826,7.96,159.96,159.92,7.91717197]
[1762410135341,7.96,159.96,159.93,7.91717197]
[1762410135742,7.96,159.96,159.92,7.91717197]
[1762410136647,7.96,159.96,159.93,6.25273557]
[1762410136949,7.3,159.96,159.92,14.17022614]
[1762410137149,0.66,159.95,159.92,6.25305417]
[1762410137539,0.66,159.95,159.88,6.25469101]
[1762410137540,7.91717197,159.94,159.88,6.25469101]
[1762410137749,0.66,159.95,159.88,14.17186298]
[1762410137750,15.87717197,159.93,159.88,14.17186298]
[1762410138048,7.96,159.93,159.88,14.17186298]
[1762410138251,0.66,159.92,159.88,14.17186298]
[1762410139270,6.25272739,159.94,159.88,14.17186298]
[1762410139271,7.3,159.94,159.91,7.91717197]
[1762410139553,50.0,159.98,159.91,7.91717197]
[1762410139554,0.66,160.0,159.93,7.91717197]
[1762410139755,0.66,160.0,159.92,0.68]
[1762410139756,7.3,159.99,159.92,0.68]
[1762410139945,7.3,159.99,159.95,7.91717197]
[1762410140150,7.96,159.99,159.96,7.91717197]
[1762410140452,7.96,159.99,159.98,7.91717197]
[1762410140845,7.3,159.99,159.98,7.91717197]
[1762410141356,7.96,159.99,159.98,7.91717197]
[1762410141561,7.96,159.99,159.95,7.91717197]
[1762410141769,0.66,159.98,159.95,7.91717197]
[1762410142147,0.66,159.98,159.96,7.91717197]
[1762410142758,0.66,159.98,159.95,7.91717197]
[1762410142933,58.57717197,159.98,159.91,20.592]
[1762410143134,58.57717197,159.98,159.93,7.91717197]
[1762410143336,0.71,159.97,159.93,7.91717197]
[1762410143546,7.32,159.96,159.93,7.91717197]
[1762410143964,0.71,159.95,159.93,7.91717197]
[1762410144165,0.71,159.95,159.92,7.91717197]
[1762410144845,30.5091301,159.95,159.89,20.592]
[1762410145046,7.91717197,159.93,159.88,7.91717197]
[1762410145267,7.32,159.92,159.88,7.91717197]
[1762410145570,8.03,159.92,159.88,7.91717197]
[1762410145744,0.71,159.91,159.88,7.91717197]
[1762410146064,8.62717197,159.91,159.86,7.91717197]
[1762410146366,0.71,159.91,159.87,7.91717197]
[1762410146550,0.71,159.91,159.88,7.91717197]
[1762410147866,0.71,159.91,159.87,7.91717197]
[1762410148379,0.71,159.91,159.87,11.89730518]
[1762410148873,12.60587399,159.91,159.86,11.89767255]
[1762410149046,6.9636003,159.91,159.87,5.64227369]
[1762410149247,0.71,159.9,159.87,5.64227369]
[1762410149570,69.21547333,159.92,159.86,21.8940827]
[1762410149571,7.32,159.89,159.86,21.8940827]
[1762410149874,7.32,159.9,159.86,21.8940827]
[1762410150244,8.03,159.9,159.86,21.8940827]
[1762410150758,8.03,159.9,159.88,5.64227369]
[1762410151342,104.7,159.91,159.89,5.64227369]
[1762410151546,7.32,159.92,159.9,5.64227369]
[1762410151747,7.32,159.92,159.91,5.64227369]
[1762410152057,7.32,159.94,159.91,5.64227369]
[1762410152242,7.32,159.94,159.93,5.64227369]
[1762410152871,7.32,159.94,159.89,20.592]
[1762410153044,0.71,159.93,159.9,5.64227369]
[1762410153245,7.32,159.94,159.91,5.64227369]
[1762410153475,8.03,159.94,159.91,5.64227369]
[1762410154286,8.03,159.94,159.92,5.64227369]
[1762410154670,0.71,159.93,159.91,5.64227369]
[1762410155043,7.32,159.94,159.92,5.64227369]
[1762410155249,7.32,159.94,159.93,5.64227369]
[1762410155451,5.64227369,159.99,159.93,5.64227369]
[1762410155452,105.41,159.99,159.93,5.64227369]
[1762410155670,104.7,159.99,159.98,5.64227369]
[1762410155862,112.02,159.99,159.98,5.64227369]
[1762410156676,7.32,159.99,159.98,11.89305503]
[1762410158370,7.32,159.99,159.93,20.592]
[1762410158371,8.03,159.99,159.93,20.592]
[1762410158556,0.71,159.98,159.94,6.25202144]
[1762410158761,0.71,159.98,159.94,11.89429513]
[1762410159476,12.60307653,159.98,159.93,5.64227369]
[1762410159774,5.64227369,159.97,159.92,5.64227369]
[1762410159972,7.32,159.96,159.93,5.64227369]
[1762410160465,8.03,159.96,159.93,5.64227369]
[1762410160776,0.71,159.95,159.93,5.64227369]
[1762410161161,0.71,159.95,159.92,11.89529662]
[1762410161466,7.32,159.96,159.92,11.89529662]
[1762410161467,7.32,159.96,159.92,6.25302293]
[1762410161672,0.71,159.95,159.92,11.89529662]
[1762410161859,0.71,159.95,159.92,6.25302293]
[1762410162060,0.71,159.95,159.91,6.25341653]
[1762410162458,0.71,159.95,159.88,6.25465469]
[1762410162459,5.64227369,159.93,159.88,6.25465469]
[1762410162662,8.03,159.92,159.88,6.25465469]
[1762410163768,8.03,159.92,159.88,11.89692838]
[1762410164301,0.71,159.91,159.88,5.64227369]
[1762410164870,0.71,159.91,159.88,11.89678102]
[1762410165055,7.32,159.92,159.89,5.64227369]
[1762410165380,8.03,159.92,159.89,5.64227369]
[1762410166279,7.32,159.92,159.89,5.64227369]
[1762410166479,0.71,159.95,159.91,5.64227369]
[1762410166661,0.71,159.95,159.92,5.64227369]
[1762410166858,0.71,159.95,159.9,6.25355693]
[1762410167064,6.35227369,159.95,159.9,11.89583062]
[1762410167382,56.35227369,159.95,159.9,11.89583062]
[1762410167679,0.71,159.94,159.9,11.89583062]
[1762410167983,7.32,159.93,159.88,27.53330201]
[1762410168170,104.7,159.92,159.88,28.23330201]
[1762410168769,104.7,159.92,159.89,5.64227369]
[1762410168965,105.41,159.92,159.88,22.59102832]
[1762410169160,105.41,159.92,159.88,27.53330201]
[1762410169365,105.41,159.92,159.89,5.64227369]
[1762410170066,104.7,159.92,159.91,5.64227369]
[1762410170268,7.32,159.97,159.91,5.64227369]
[1762410170468,7.32,159.97,159.94,5.64227369]
[1762410171264,0.71,159.96,159.93,11.89493887]
[1762410171459,50.71,159.99,159.95,5.64227369]
[1762410171797,7.32,159.98,159.95,5.64227369]
[1762410172465,7.32,159.98,159.95,11.89412361]
[1762410172882,7.32,159.98,159.95,5.64227369]
[1762410172883,8.02,159.98,159.95,5.64227369]
[1762410173088,8.02,159.98,159.94,12.59431067]
[1762410173586,0.7,159.97,159.93,6.25266532]
[1762410173888,0.7,159.97,159.92,11.89516159]
[1762410174391,6.34227369,159.97,159.92,11.89516159]
[1762410174869,0.7,159.96,159.92,11.89516159]
[1762410175200,7.32,159.95,159.92,6.2528879]
[1762410175565,8.02,159.95,159.92,6.2528879]
[1762410175776,8.02,159.95,159.92,11.89516159]
[1762410176179,8.02,159.95,159.91,5.64227369]
[1762410177265,8.02,159.95,159.91,11.89540166]
[1762410177783,8.02,159.95,159.92,5.64227369]
[1762410178377,104.7,159.96,159.93,11.89500926]
[1762410178692,8.0,159.95,159.93,11.89500926]
[1762410178892,8.0,159.95,159.93,6.25273557]
[1762410179668,7.3,159.95,159.92,6.25303935]
[1762410179910,0.7,159.94,159.92,6.25303935]
[1762410180274,7.3,159.95,159.92,11.89531304]
[1762410180577,8.0,159.95,159.92,11.89531304]
[1762410182083,7.3,159.95,159.92,12.56531304]
[1762410183288,7.3,159.95,159.92,6.92303935]
[1762410183503,7.3,159.95,159.92,12.56531304]
[1762410184188,7.3,159.95,159.93,5.64227369]
[1762410184500,104.7,159.96,159.94,2.16422744]
[1762410184696,104.7,159.96,159.95,2.16422744]
[1762410185308,104.7,159.96,159.94,2.16422744]
[1762410185476,104.7,159.96,159.95,6.25195373]
[1762410185879,112.7,159.96,159.91,6.2535176]
[1762410186182,0.7,159.95,159.92,2.16422744]
[1762410186388,7.3,159.94,159.91,9.08774504]
[1762410187305,7.3,159.94,159.92,2.16422744]
[1762410187489,7.3,159.94,159.93,6.25273557]
[1762410187683,104.7,159.96,159.89,20.592]
[1762410187909,8.0,159.95,159.92,2.16422744]
[1762410188290,0.7,159.94,159.92,2.16422744]
[1762410188894,0.7,159.94,159.9,0.67]
[1762410189098,0.7,159.94,159.92,2.16422744]
[1762410189322,0.7,159.94,159.91,2.16422744]
[1762410189620,0.7,159.94,159.91,8.41751239]
[1762410190509,7.3,159.95,159.92,2.16422744]
[1762410190713,0.7,159.94,159.92,2.16422744]
[1762410191213,0.7,159.94,159.92,8.41720481]
[1762410191388,7.3,159.93,159.89,6.25401418]
[1762410191590,7.3,159.93,159.89,29.01024162]
[1762410191900,8.0,159.93,159.9,2.16422744]
[1762410192811,105.4,159.96,159.91,2.83422744]
[1762410193026,204.7,160.02,159.95,8.41618117]
[1762410193195,161.64927019,160.02,159.97,2.16422744]
[1762410193521,7.3,160.0,159.97,2.16422744]
[1762410194017,8.0,160.0,159.97,2.16422744]
[1762410194316,8.0,160.0,159.97,5.63493202]
[1762410194510,0.7,159.99,159.96,5.63493202]
[1762410195015,62.93493202,159.98,159.93,20.592]
[1762410195214,62.93493202,159.98,159.93,32.47945863]
[1762410195415,7.3,159.98,159.97,5.63493202]
[1762410195718,8.12,160.01,159.97,5.63493202]
[1762410195893,0.7,160.0,159.97,5.63493202]
[1762410196094,7.32,159.99,159.97,5.63493202]
[1762410196796,0.7,159.98,159.97,5.63493202]
[1762410196996,0.7,159.98,159.96,5.63493202]
[1762410197318,0.7,159.98,159.95,11.8865764]
[1762410197507,7.3,159.97,159.95,5.63493202]
[1762410197702,7.3,159.97,159.91,26.8455176]
[1762410197906,0.7,159.96,159.92,5.63493202]
[1762410198218,0.7,159.96,159.93,5.63493202]
[1762410198916,0.7,159.96,159.93,11.88728385]
[1762410200799,0.7,159.96,159.93,6.25235183]
[1762410201103,0.7,159.99,159.95,5.63493202]
[1762410201424,0.7,159.99,159.94,0.67]
[1762410201609,0.7,159.99,159.95,5.63493202]
[1762410202212,0.7,159.99,159.95,11.88673588]
[1762410203927,12.58548522,159.99,159.92,6.25312656]
[1762410204103,12.58548522,159.99,159.93,5.63493202]
[1762410204305,0.69,159.98,159.95,5.63493202]
[1762410204514,7.3,159.97,159.95,5.63493202]
[1762410204895,0.69,159.96,159.92,6.93312656]
[1762410205100,0.69,159.96,159.91,6.25341126]
[1762410205320,111.02493202,159.96,159.91,12.56834328]
[1762410205526,105.39,159.96,159.92,5.63493202]
[1762410205727,0.69,159.95,159.91,11.88834328]
[1762410205909,7.3,159.94,159.91,12.56834328]
[1762410206114,7.3,159.94,159.92,5.63493202]
[1762410208325,104.7,159.96,159.93,11.88766759]
[1762410208529,104.7,159.96,159.95,5.63493202]
[1762410208530,112.0,159.96,159.95,5.63493202]
[1762410209728,112.0,159.96,159.93,12.56729309]
[1762410210029,112.0,159.96,159.94,5.63493202]
[1762410210534,112.0,159.96,159.94,7.91774433]
[1762410210847,112.0,159.96,159.93,14.1701054]
[1762410210848,112.69,159.96,159.93,14.1701054]
[1762410211535,0.1,160.01,159.95,7.91774433]
[1762410211854,0.1,160.01,160.0,7.91774433]
[1762410212017,0.79,160.01,159.99,7.91774433]
[1762410212219,0.79,160.01,159.98,7.91774433]
[1762410212409,0.79,160.01,159.99,7.91774433]
[1762410212611,0.1,160.01,160.0,7.91774433]
[1762410212821,7.4,160.01,160.0,7.91774433]
[1762410213406,8.09,160.01,159.99,7.91774433]
[1762410213622,8.09,160.01,159.97,7.91774433]
[1762410213623,0.69,160.0,159.97,7.91774433]
[1762410214203,0.69,160.0,159.95,6.25195373]
[1762410214602,0.69,160.0,159.97,7.91774433]
[1762410214804,0.69,160.0,159.96,7.91774433]
[1762410215736,0.69,160.0,159.95,6.25195373]
[1762410215913,0.69,160.0,159.97,7.91774433]
[1762410216118,0.69,160.0,159.96,7.91774433]
[1762410216726,0.69,160.0,159.97,7.91774433]
[1762410217532,0.69,160.0,159.97,14.16872498]
[1762410217720,104.7,159.99,159.97,14.16872498]
[1762410217916,7.3,159.98,159.97,14.16872498]
[1762410218123,7.97,159.98,159.97,14.16872498]
[1762410219221,7.3,159.98,159.97,14.16872498]
[1762410220822,7.97,159.98,159.97,7.91774433]
[1762410221214,7.97,159.98,159.94,20.592]
[1762410221530,7.97,159.98,159.94,7.91774433]
[1762410221531,105.37,159.97,159.94,7.91774433]
[1762410221732,7.3,159.96,159.94,0.69]
[1762410222938,7.3,159.96,159.95,14.16969806]
[1762410223323,7.3,159.96,159.95,14.85969806]
[1762410223909,7.3,159.96,159.95,14.16969806]
[1762410225555,112.0,159.97,159.95,14.16969806]
[1762410225742,112.0,159.97,159.96,7.91774433]
[1762410227022,112.67,159.97,159.92,0.69]
[1762410227211,112.67,159.97,159.91,20.592]
[1762410227212,0.67,159.96,159.91,7.91774433]
[1762410227414,7.28,159.95,159.93,7.91774433]
[1762410227615,0.67,159.96,159.94,7.91774433]
[1762410227831,7.97,159.95,159.94,7.91774433]
[1762410228117,7.97,159.95,159.93,7.91774433]
[1762410228427,7.3,159.95,159.93,7.91774433]
[1762410228742,7.97,159.95,159.93,7.91774433]
[1762410229449,104.7,159.97,159.94,7.91774433]
[1762410229627,7.3,159.96,159.95,14.16969806]
[1762410229940,7.97,159.96,159.95,14.16969806]
[1762410230243,7.97,159.96,159.94,6.25233034]
[1762410230451,7.97,159.96,159.94,14.17007467]
[1762410230820,0.67,159.95,159.94,7.91774433]
[1762410231029,0.67,159.95,159.93,14.17022446]
[1762410231227,7.3,159.94,159.93,14.17022446]
[1762410234246,7.3,159.94,159.93,7.91774433]
[1762410234635,104.7,159.97,159.93,8.61774433]
[1762410234830,7.3,159.96,159.94,7.91774433]
[1762410235023,7.3,159.96,159.93,7.91774433]
[1762410235224,0.67,159.95,159.93,7.91774433]
[1762410235434,7.3,159.94,159.91,6.25343067]
[1762410235628,7.3,159.94,159.92,7.91774433]
[1762410236040,7.3,159.94,159.93,7.91774433]
[1762410236239,7.3,159.94,159.93,14.1704799]
[1762410236441,7.3,159.94,159.93,9.63545443]
[1762410236638,7.3,159.94,159.93,10.33545443]
[1762410236932,105.37,159.97,159.95,20.592]
[1762410236933,7.3,159.96,159.95,20.592]
[1762410237144,7.3,159.96,159.95,23.97471886]
[1762410237344,104.7,159.97,159.96,20.592]
[1762410237650,104.7,159.97,159.96,23.97471886]
[1762410238146,104.7,159.97,159.96,30.22628175]
[1762410238532,104.8,160.01,159.96,46.55518897]
[1762410238730,104.8,160.01,160.0,3.38271886]
[1762410239755,0.1,160.01,160.0,3.38271886]
[1762410239935,0.1,160.01,160.0,23.97471886]
[1762410240631,0.1,160.01,160.0,30.22471886]
[1762410241150,50.0,159.99,159.93,6.25273557]
[1762410241451,112.0,159.98,159.94,23.97471886]
[1762410241756,112.67,159.98,159.94,23.97471886]
[1762410241942,0.67,159.97,159.94,20.592]
[1762410242141,7.3,159.96,159.95,20.592]
[1762410242441,7.3,159.96,159.95,26.84395373]
[1762410242646,7.97,159.96,159.95,6.25195373]
[1762410242837,104.7,159.98,159.97,20.592]
[1762410243043,15.21845297,160.0,159.97,20.592]
[1762410243357,7.3,160.0,159.97,20.592]
[1762410243538,0.67,159.99,159.97,20.592]
[1762410243736,7.3,159.98,159.97,28.51045297]
[1762410244837,7.3,159.98,159.97,7.91845297]
[1762410245033,7.3,159.98,159.96,7.91845297]
[1762410245351,0.67,159.97,159.95,20.592]
[1762410245655,0.67,159.97,159.94,7.91845297]
[1762410246062,0.67,159.97,159.95,7.91845297]
[1762410246263,0.67,159.97,159.95,14.17037799]
[1762410246554,50.67,160.0,159.96,7.91845297]
[1762410246759,7.97,159.99,159.97,7.91845297]
[1762410246956,104.7,159.98,159.97,7.91845297]
[1762410247458,112.0,159.98,159.97,7.91845297]
[1762410248447,112.0,159.98,159.97,14.16962506]
[1762410248644,104.7,159.98,159.97,14.86962506]
[1762410252262,104.7,159.98,159.97,6.25117209]
[1762410252446,104.7,159.98,159.97,14.16962506]
[1762410254036,104.7,159.98,159.96,6.25156289]
[1762410254248,104.7,159.98,159.97,7.91845297]
[1762410255270,104.7,159.98,159.97,14.16962506]
[1762410255655,104.7,159.98,159.97,14.86962506]
[1762410255855,104.7,159.98,159.97,14.16962506]
[1762410257769,112.67,159.98,159.96,14.16998817]
[1762410257949,0.67,159.97,159.96,14.16998817]
[1762410258865,0.67,159.97,159.96,7.91845297]
[1762410260172,0.67,159.97,159.96,14.17001586]
[1762410260356,0.67,159.97,159.96,7.91845297]
[1762410261172,0.67,159.97,159.91,9.78882769]
[1762410261173,0.67,159.97,159.94,7.91845297]
[1762410261476,7.3,159.96,159.93,7.91845297]
[1762410261658,7.3,159.96,159.93,14.17117068]
[1762410261860,0.67,159.95,159.93,14.17117068]
[1762410262263,7.3,159.94,159.92,14.17148009]
[1762410262463,7.3,159.94,159.92,9.63637975]
[1762410262763,7.96,159.94,159.92,9.63637975]
[1762410263574,7.96,159.94,159.93,3.38335263]
[1762410263877,7.96,159.94,159.93,9.6360882]
[1762410264063,7.96,159.94,159.93,6.25273557]
[1762410264575,7.96,159.94,159.92,9.63637687]
[1762410264963,7.96,159.94,159.93,3.38335263]
[1762410266375,7.3,159.94,159.93,3.38335263]
[1762410266572,7.28,159.99,159.93,24.68535263]
[1762410266779,0.1,160.01,159.98,3.38335263]
[1762410266966,0.66,160.0,159.99,3.38335263]
[1762410270372,0.66,160.0,159.98,2.16355083]
[1762410272866,0.66,160.0,159.93,7.28]
[1762410273075,104.7,159.99,159.96,2.16355083]
[1762410273269,7.28,159.98,159.96,2.16355083]
[1762410273473,7.94,159.98,159.96,2.16355083]
[1762410273665,0.66,159.97,159.96,2.16355083]
[1762410274583,7.28,159.98,159.97,6.25117209]
[1762410274767,7.28,159.98,159.97,8.41472292]
[1762410276585,111.98,159.99,159.97,8.41472292]
[1762410279567,111.98,159.99,159.97,2.16355083]
[1762410279774,0.66,159.98,159.96,8.41506696]
[1762410281194,0.66,159.98,159.95,6.25184151]
[1762410281496,112.64,159.99,159.96,2.16355083]
[1762410281694,0.66,159.98,159.96,8.41489766]
[1762410282571,7.28,159.97,159.94,2.16355083]
[1762410282974,7.94,159.97,159.94,2.16355083]
[1762410283377,7.94,159.97,159.95,2.16355083]
[1762410285091,7.94,159.97,159.95,8.4154588]
[1762410285485,7.94,159.97,159.95,2.16355083]
[1762410285674,0.66,159.96,159.93,8.4162338]
[1762410285875,7.28,159.95,159.93,8.4162338]
[1762410286199,6.24408093,159.95,159.93,8.4162338]
[1762410286489,5.58408093,159.95,159.94,2.16355083]
[1762410287682,5.58408093,159.95,159.94,8.41589545]
[1762410291105,104.7,159.96,159.94,9.08589545]
[1762410291312,104.7,159.96,159.95,2.83355083]
[1762410291669,104.7,159.96,159.95,9.08550456]
[1762410292292,104.7,159.96,159.95,8.41550456]
[1762410294488,105.36,159.96,159.94,8.41580288]
[1762410294888,105.36,159.96,159.95,2.16355083]
[1762410295084,104.7,159.96,159.95,2.16355083]
[1762410295601,104.7,159.96,159.95,8.41550456]
[1762410298513,104.7,159.96,159.94,8.41589545]
[1762410301510,0.76,160.01,159.95,2.82355083]
[1762410301719,0.1,160.01,160.0,2.16355083]
[1762410301885,0.1,160.01,160.0,8.41355083]
[1762410303290,0.1,160.01,160.0,9.07355083]
[1762410303700,0.1,160.01,160.0,6.25]
[1762410303892,0.1,160.01,160.0,9.07355083]
[1762410304211,0.1,160.01,160.0,8.41355083]
[1762410304518,0.1,160.01,160.0,6.25]
[1762410305185,0.76,160.01,159.99,8.41385916]
[1762410305399,0.76,160.01,159.99,6.25030833]
[1762410305909,0.1,160.01,159.99,6.25030833]
[1762410306116,0.1,160.01,159.99,8.41385916]
[1762410306409,0.1,160.01,160.0,2.16355083]
[1762410306798,0.76,160.01,160.0,2.16355083]
[1762410306997,0.76,160.01,159.99,8.41385916]
[1762410307195,8.04,160.01,159.98,6.25076526]
[1762410307599,0.66,160.0,159.98,6.25076526]
[1762410307796,0.66,160.0,159.97,6.25112932]
[1762410308006,0.66,160.0,159.96,6.25156289]
[1762410308390,0.66,160.0,159.93,36.88378086]
[1762410308391,56.91010831,160.0,159.94,6.25195595]
[1762410308606,2.16355083,159.98,159.94,6.25195595]
[1762410308808,7.28,159.97,159.94,6.25195595]
[1762410309010,7.28,159.97,159.94,8.41550678]
[1762410309199,7.94,159.97,159.94,8.41550678]
[1762410310110,7.94,159.97,159.93,8.41623939]
[1762410310304,7.94,159.97,159.93,24.70807831]
[1762410310719,7.94,159.97,159.94,2.16355083]
[1762410312211,7.94,159.97,159.95,6.25195373]
[1762410313308,7.94,159.97,159.94,6.25234462]
[1762410313998,7.94,159.97,159.94,8.41589545]
[1762410314211,7.94,159.97,159.95,2.16355083]
[1762410315424,0.66,159.96,159.95,6.25177376]
[1762410315790,7.28,159.97,159.95,6.25177376]
[1762410315996,7.94,159.97,159.95,6.25177376]
[1762410316945,7.94,159.97,159.95,2.16355083]
[1762410317219,0.66,159.96,159.94,2.16355083]
[1762410317405,0.66,159.96,159.93,24.04722768]
[1762410317720,0.66,159.96,159.93,8.4162864]
[1762410318021,0.66,159.96,159.93,9.0762864]
[1762410318527,0.66,159.96,159.93,8.4162864]
[1762410318897,0.66,159.96,159.93,6.25273557]
[1762410319922,0.66,159.96,159.93,8.4162864]
[1762410320318,0.66,159.96,159.93,6.25273557]
[1762410322102,0.66,159.96,159.93,2.16355083]
[1762410322624,104.7,159.95,159.91,2.16355083]
[1762410322816,104.7,159.95,159.87,38.55390152]
[1762410322817,111.98,159.94,159.87,0.66]
[1762410323020,114.83355083,159.94,159.89,2.16355083]
[1762410323213,0.69,159.93,159.9,2.16355083]
[1762410323408,0.69,159.93,159.89,2.16355083]
[1762410323923,104.7,159.94,159.92,2.16355083]
[1762410324129,104.7,159.94,159.93,8.4162864]
[1762410325917,104.7,159.94,159.93,6.25273557]
[1762410326104,105.39,159.94,159.93,8.4162864]
[1762410326301,104.7,159.94,159.93,8.4162864]
[1762410327533,105.39,159.94,159.92,6.25305317]
[1762410327710,0.69,159.93,159.91,8.41703019]
[1762410327917,0.69,159.93,159.91,6.25347936]
[1762410328223,0.69,159.93,159.92,2.16355083]
[1762410329639,7.97,159.93,159.91,8.41703019]
[1762410329826,7.97,159.93,159.91,2.16355083]
[1762410330440,7.97,159.93,159.91,8.4170089]
[1762410331144,0.69,159.92,159.89,8.41749016]
[1762410332143,7.28,159.91,159.89,8.41749016]
[1762410332344,7.28,159.91,159.89,9.63850514]
[1762410332648,7.97,159.91,159.89,9.63850514]
[1762410333842,0.69,159.9,159.87,3.38456581]
[1762410334148,0.69,159.92,159.89,3.38456581]
[1762410334324,0.69,159.91,159.9,3.38456581]
[1762410334526,7.97,159.91,159.9,3.38456581]
[1762410334852,7.28,159.91,159.9,3.38456581]
[1762410335025,7.97,159.91,159.9,3.38456581]
[1762410335228,7.97,159.91,159.89,3.38456581]
[1762410336549,7.97,159.91,159.89,9.63871111]
[1762410337424,7.28,159.91,159.9,3.38456581]
[1762410337640,111.98,159.94,159.9,4.09456581]
[1762410337848,111.98,159.94,159.93,3.38456581]
[1762410338050,112.67,159.94,159.93,9.63730138]
[1762410338349,112.67,159.94,159.93,6.25273557]
[1762410339131,112.67,159.94,159.92,9.63768356]
[1762410342054,112.67,159.94,159.92,6.25311775]
[1762410342239,0.69,159.93,159.91,3.38456581]
[1762410342440,0.69,159.93,159.91,9.63797266]
[1762410342637,111.98,159.94,159.92,3.38456581]
[1762410342957,111.98,159.94,159.91,6.96340685]
[1762410342958,111.98,159.94,159.93,3.38456581]
[1762410343327,0.69,159.97,159.93,25.9791403]
[1762410343527,7.28,159.96,159.95,3.38456581]
[1762410345333,7.28,159.96,159.95,9.63651954]
[1762410351766,105.39,159.98,159.95,9.63651954]
[1762410351964,112.67,159.98,159.96,3.38456581]
[1762410352174,0.66,159.97,159.96,3.38456581]
[1762410352465,111.98,159.98,159.96,3.38456581]